[Event "EYCC Open-U12 2019"]
[Site "Bratislava"]
[Date "2019.08.08"]
[Round "7.5"]
[White "Han, Yichen"]
[Black "Ciric, Pavle"]
[Result "1-0"]
[ECO "C13"]
[WhiteElo "2217"]
[BlackElo "1987"]
[Annotator "NA"]
[PlyCount "111"]
[EventDate "2019.08.02"]
[EventType "swiss"]
[EventCountry "SVK"]
[SourceTitle "playchess.com"]
[Source "ChessBase"]
[SourceQuality "1"]
[TimeControl "40/5400+30:1800+30"]

1. e4 {[%emt 0:00:00]} e6 {[%emt 0:00:00]} 2. d4 {[%emt 0:00:00]} d5 {[%emt 0:00:00]} 3. Nc3 {[%emt 0:00:00]} Nf6 {[%emt 0:00:01]} 4. Bg5 {[%emt 0:00:00]} Be7 {[%emt 0:04:22]} 5. e5 {[%emt 0:00:00]} Nfd7 {[%emt 0:00:36]} 6. h4 {[%emt 0:00:11]} f6 {[%emt 0:12:53]} 7. exf6 {[%emt 0:00:47]} Nxf6 {[%emt 0:00:12]} 8. Nf3 {[%emt 0:03:31]} c5 {[%emt 0:02:59]} 9. Bb5+ {[%emt 0:07:32]} Bd7 {[%emt 0:04:49]} 10. Bxf6 {[%emt 0:12:47]} Bxf6 {[%emt 0:00:40]} 11. Qe2 {[%emt 0:02:56]} O-O {[%emt 0:07:51]} 12. O-O-O {[%emt 0:10:27]} Nc6 {[%emt 0:04:11]} 13. Bxc6 {[%emt 0:07:41]} bxc6 {[%emt 0:00:32]} 14. Na4 {[%emt 0:00:45]} cxd4 {[%emt 0:01:02]} 15. Ne5 {[%emt 0:06:41]} Bxe5 {[%emt 0:07:33]} 16. Qxe5 {[%emt 0:00:16]} Qe7 {[%emt 0:25:18]} 17. Qxd4 {[%emt 0:01:43]} e5 {[%emt 0:03:25]} 18. Qe3 {[%emt 0:03:50]} Rf4 {[%emt 0:06:18]} 19. Nc5 {[%emt 0:02:51]} Raf8 {[%emt 0:01:59]} 20. f3 {[%emt 0:01:25]} Bf5 {[%emt 0:02:02]} 21. Nd3 {[%emt 0:06:07]} Bxd3 {[%emt 0:00:05]} 22. Rxd3 {[%emt 0:00:51]} d4 {[%emt 0:02:50]} 23. Qe2 {[%emt 0:01:10]} c5 {[%emt 0:03:33]} 24. g3 {[%emt 0:01:38]} R4f5 {[%emt 0:01:07]} 25. Re1 {[%emt 0:00:39]} c4 {[%emt 0:04:37]} 26. Rxd4 {[%emt 0:01:08]} Rxf3 {[%emt 0:00:13]} 27. Qxc4+ {[%emt 0:00:37]} Kh8 {[%emt 0:00:03]} 28. Rde4 {[%emt 0:00:20]} Rxg3 {[%emt 0:03:08]} 29. Rxe5 {[%emt 0:00:07]} Qd8 {[%emt 0:01:22]} 30. Qe4 {[%emt 0:02:37]} h6 {[%emt 0:00:43]} 31. Re8 {[%emt 0:02:17]} Rxe8 {[%emt 0:00:04]} 32. Qxe8+ {[%emt 0:00:04]} Qxe8 {[%emt 0:00:01]} 33. Rxe8+ {[%emt 0:00:14]} Kh7 {[%emt 0:00:01]} 34. Re4 {[%emt 0:00:49]} Kg6 {[%emt 0:00:34]} 35. c4 {[%emt 0:00:43]} Kf5 {[%emt 0:00:14]} 36. Rd4 {[%emt 0:00:35]} Ke5 {[%emt 0:00:11]} 37. Rd5+ Ke6 {[%emt 0:00:05]} 38. h5 {[%emt 0:01:16]} Rg4 {[%emt 0:01:27]} 39. b3 {[%emt 0:00:13]} Rg2 {[%emt 0:00:03]} 40. Ra5 {[%emt 0:00:00]} Rh2 {[%emt 0:00:00]} 41. Rxa7 {[%emt 0:01:16]} Rxh5 {[%emt 0:00:21]} 42. Rxg7 {[%emt 0:00:07]} Rh2 {[%emt 0:00:06]} 43. a4 {[%emt 0:00:35]} Kd6 {[%emt 0:01:08]} 44. a5 {[%emt 0:00:21]} Kc5 {[%emt 0:00:17]} 45. a6 {[%emt 0:02:31]} Ra2 {[%emt 0:01:10]} 46. a7 {[%emt 0:00:45]} Kb6 {[%emt 0:00:52]} 47. Rg6+ {[%emt 0:00:14]} Kc5 {[%emt 0:00:16]} 48. Rxh6 {[%emt 0:00:25]} Rxa7 {[%emt 0:00:03]} 49. Kb2 {[%emt 0:00:09]} Rf7 {[%emt 0:00:26]} 50. Rh5+ {[%emt 0:00:17]} Kd4 {[%emt 0:00:12]} 51. Rd5+ {[%emt 0:00:07]} Ke4 {[%emt 0:00:04]} 52. Kc3 {[%emt 0:00:16]} Rf3+ {[%emt 0:00:14]} 53. Kb4 {[%emt 0:00:10]} Rf7 {[%emt 0:00:03]} 54. Rd1 {[%emt 0:00:27]} Rb7+ {[%emt 0:00:07]} 55. Kc3 {[%emt 0:00:05]} Rb8 {[%emt 0:00:09]} 56. c5 {[%emt 0:00:07] Kd5} 1-0

[Event "EYCC Open-U12 2019"]
[Site "Bratislava"]
[Date "2019.08.08"]
[Round "7.6"]
[White "Makkar, Rajat"]
[Black "Strybuk, Artsiom I"]
[Result "1/2-1/2"]
[ECO "A48"]
[WhiteElo "2064"]
[BlackElo "2193"]
[Annotator "NA"]
[PlyCount "64"]
[EventDate "2019.08.02"]
[EventType "swiss"]
[EventCountry "SVK"]
[SourceTitle "playchess.com"]
[Source "ChessBase"]
[SourceQuality "1"]
[TimeControl "40/5400+30:1800+30"]

1. d4 {[%emt 0:00:00]} Nf6 {[%emt 0:00:00]} 2. Nf3 {[%emt 0:00:00]} g6 {[%emt 0:00:00]} 3. Nbd2 {[%emt 0:00:22]} d5 {[%emt 0:01:55]} 4. e3 {[%emt 0:00:34]} Bg7 {[%emt 0:02:00]} 5. b4 {[%emt 0:01:05]} O-O {[%emt 0:01:54]} 6. Bb2 {[%emt 0:00:55]} Nbd7 {[%emt 0:10:15]} 7. c4 {[%emt 0:04:36]} dxc4 {[%emt 0:02:44]} 8. Nxc4 {[%emt 0:06:41]} Nb6 {[%emt 0:06:10]} 9. Be2 {[%emt 0:10:03]} Nxc4 {[%emt 0:04:36]} 10. Bxc4 {[%emt 0:02:34]} b6 {[%emt 0:00:55]} 11. Ne5 {[%emt 0:03:04]} Bb7 {[%emt 0:01:00]} 12. Qb3 {[%emt 0:02:56]} e6 {[%emt 0:11:12]} 13. O-O {[%emt 0:05:55]} Nd7 {[%emt 0:03:21]} 14. f4 {[%emt 0:12:24]} Nxe5 {[%emt 0:11:51]} 15. fxe5 {[%emt 0:05:16]} a6 {[%emt 0:00:12]} 16. a4 {[%emt 0:01:44]} b5 {[%emt 0:08:49]} 17. axb5 {[%emt 0:02:17]} axb5 {[%emt 0:01:14]} 18. Be2 {[%emt 0:05:55]} Qg5 {[%emt 0:07:50]} 19. Bf3 {[%emt 0:00:43]} Bxf3 {[%emt 0:00:23]} 20. Rxf3 {[%emt 0:00:13]} Rxa1+ {[%emt 0:00:03]} 21. Bxa1 {[%emt 0:00:01]} Ra8 {[%emt 0:02:09]} 22. Bb2 {[%emt 0:01:34]} Qd8 {[%emt 0:03:58]} 23. Qc3 {[%emt 0:04:03]} Qd7 {[%emt 0:00:26]} 24. e4 c6 25. Rd3 {[%emt 0:03:59]} Bf8 {[%emt 0:01:18]} 26. d5 {[%emt 0:03:37]} cxd5 {[%emt 0:00:07]} 27. exd5 {[%emt 0:00:23]} Rc8 {[%emt 0:00:22]} 28. Qd2 {[%emt 0:02:38]} exd5 {[%emt 0:03:07]} 29. Rxd5 {[%emt 0:01:10]} Qa7+ {[%emt 0:03:16]} 30. Qd4 {[%emt 0:06:34]} Qxd4+ {[%emt 0:00:55]} 31. Bxd4 {[%emt 0:00:42]} Bxb4 {[%emt 0:00:15]} 32. Rxb5 {[%emt 0:00:10]} Bc3 {[%emt 0:02:34]} 1/2-1/2

[Event "EYCC Open-U12 2019"]
[Site "Bratislava"]
[Date "2019.08.08"]
[Round "7.7"]
[White "Fiszer, Bartosz"]
[Black "Tobak, Mikhail"]
[Result "0-1"]
[ECO "C70"]
[WhiteElo "2124"]
[BlackElo "1943"]
[Annotator "NA"]
[PlyCount "70"]
[EventDate "2019.08.02"]
[EventType "swiss"]
[EventCountry "SVK"]
[SourceTitle "playchess.com"]
[Source "ChessBase"]
[SourceQuality "1"]
[TimeControl "40/5400+30:1800+30"]

1. e4 {[%emt 0:00:00]} e5 {[%emt 0:00:00]} 2. Nf3 {[%emt 0:00:00]} Nc6 {[%emt 0:00:00]} 3. Bb5 {[%emt 0:00:16]} a6 {[%emt 0:00:00]} 4. Ba4 {[%emt 0:00:25]} f5 {[%emt 0:00:21]} 5. d3 {[%emt 0:03:04]} fxe4 {[%emt 0:00:50]} 6. dxe4 {[%emt 0:00:02]} Nf6 {[%emt 0:00:17]} 7. O-O {[%emt 0:01:50]} d6 {[%emt 0:00:09]} 8. c3 {[%emt 0:12:58]} b5 {[%emt 0:09:25]} 9. Bb3 {[%emt 0:05:31]} Na5 {[%emt 0:01:40]} 10. Bc2 {[%emt 0:00:38]} Be7 {[%emt 0:04:09]} 11. h3 {[%emt 0:09:05]} O-O {[%emt 0:04:33]} 12. a4 {[%emt 0:00:39]} Be6 {[%emt 0:07:04]} 13. Ng5 {[%emt 0:07:43]} Bc4 {[%emt 0:00:24]} 14. Re1 {[%emt 0:10:57]} h6 {[%emt 0:01:31]} 15. b3 {[%emt 0:01:35]} hxg5 {[%emt 0:01:12]} 16. bxc4 {[%emt 0:00:01]} Nxc4 {[%emt 0:03:40]} 17. Bxg5 {[%emt 0:00:28]} c6 {[%emt 0:07:12]} 18. Bb3 {[%emt 0:08:24]} Qb6 {[%emt 0:14:40]} 19. axb5 {[%emt 0:07:04]} cxb5 {[%emt 0:05:13]} 20. Nd2 {[%emt 0:02:45]} d5 {[%emt 0:10:01]} 21. exd5 {[%emt 0:06:11]} Bc5 {[%emt 0:03:52]} 22. Nxc4 {[%emt 0:07:53]} bxc4 {[%emt 0:01:38]} 23. Bxc4 {[%emt 0:00:12]} Bxf2+ {[%emt 0:00:26]} 24. Kh1 {[%emt 0:00:02]} Rac8 {[%emt 0:12:14]} 25. Rxa6 {[%emt 0:08:03]} Qc5 {[%emt 0:02:40]} 26. Ba2 {[%emt 0:00:09]} Bxe1 {[%emt 0:01:29]} 27. d6+ {[%emt 0:02:10]} Kh8 {[%emt 0:00:06]} 28. Qxe1 {[%emt 0:02:32]} Qb5 {[%emt 0:01:10]} 29. Ra7 {[%emt 0:02:31]} Nh7 {[%emt 0:01:25]} 30. Qh4 {[%emt 0:00:33]} Qb6 {[%emt 0:02:39]} 31. Rc7 {[%emt 0:00:33]} Ra8 {[%emt 0:01:23]} 32. Bc4 {[%emt 0:00:19]} Qxd6 {[%emt 0:01:02]} 33. Rb7 {[%emt 0:00:01]} Ra1+ {[%emt 0:00:17]} 34. Kh2 {[%emt 0:00:01]} e4+ {[%emt 0:00:10]} 35. Bf4 {[%emt 0:00:37]} Qxf4+ {[%emt 0:00:26]} 0-1

[Event "EYCC Open-U12 2019"]
[Site "Bratislava"]
[Date "2019.08.08"]
[Round "7.8"]
[White "Kuhn, Clement"]
[Black "Kanov, Nikola"]
[Result "1/2-1/2"]
[ECO "C55"]
[WhiteElo "1979"]
[BlackElo "1908"]
[Annotator "NA"]
[PlyCount "139"]
[EventDate "2019.08.02"]
[EventType "swiss"]
[EventCountry "SVK"]
[SourceTitle "playchess.com"]
[Source "ChessBase"]
[SourceQuality "1"]
[TimeControl "40/5400+30:1800+30"]

1. e4 {[%emt 0:00:00]} e5 {[%emt 0:00:00]} 2. Nf3 {[%emt 0:00:00]} Nc6 {[%emt 0:00:00]} 3. d4 {[%emt 0:00:00]} exd4 {[%emt 0:00:00]} 4. Bc4 {[%emt 0:00:00]} Nf6 {[%emt 0:00:00]} 5. e5 {[%emt 0:00:00]} Ng4 {[%emt 0:01:01]} 6. O-O {[%emt 0:00:08]} Be7 {[%emt 0:00:19]} 7. Re1 {[%emt 0:04:05]} d6 {[%emt 0:00:17]} 8. exd6 {[%emt 0:01:09]} cxd6 {[%emt 0:00:16]} 9. Bg5 {[%emt 0:11:17]} Nge5 {[%emt 0:04:25]} 10. Bxe7 {[%emt 0:00:11]} Qxe7 {[%emt 0:00:08]} 11. Nbd2 {[%emt 0:11:51]} O-O {[%emt 0:00:55]} 12. h3 {[%emt 0:01:39]} Be6 {[%emt 0:01:09]} 13. Bb5 {[%emt 0:05:54]} Qf6 {[%emt 0:14:24]} 14. Bxc6 bxc6 {[%emt 0:01:27]} 15. Nxd4 {[%emt 0:13:40]} Bd5 {[%emt 0:01:43]} 16. Re3 {[%emt 0:11:06]} Ng6 {[%emt 0:02:26]} 17. c3 {[%emt 0:05:55]} Rae8 {[%emt 0:06:25]} 18. Qe1 {[%emt 0:06:00]} Rxe3 {[%emt 0:00:59]} 19. Qxe3 {[%emt 0:03:32]} Nf4 {[%emt 0:02:06]} 20. N4f3 {[%emt 0:05:35]} h5 {[%emt 0:26:37]} 21. Re1 {[%emt 0:04:14]} a5 {[%emt 0:08:13]} 22. c4 {[%emt 0:04:32]} Bxf3 {[%emt 0:01:38]} 23. Qxf3 {[%emt 0:00:14]} d5 {[%emt 0:02:09]} 24. Kh2 {[%emt 0:02:37]} h4 {[%emt 0:02:53]} 25. cxd5 {[%emt 0:01:37]} cxd5 {[%emt 0:00:49]} 26. g3 {[%emt 0:01:43]} hxg3+ {[%emt 0:03:00]} 27. fxg3 {[%emt 0:00:05]} Nd3 {[%emt 0:01:22]} 28. Re2 {[%emt 0:02:16]} Qxf3 {[%emt 0:08:04]} 29. Nxf3 {[%emt 0:00:09]} Nc1 {[%emt 0:02:24]} 30. Rd2 {[%emt 0:00:49]} Nxa2 {[%emt 0:00:20]} 31. Rxd5 {[%emt 0:00:29]} Rb8 {[%emt 0:00:14]} 32. Rxa5 {[%emt 0:00:47]} Rxb2+ {[%emt 0:00:05]} 33. Kh1 {[%emt 0:00:36]} f6 {[%emt 0:03:33]} 34. Rd5 {[%emt 0:00:36]} Rf2 {[%emt 0:00:59]} 35. Rf5 {[%emt 0:00:53]} Nc3 {[%emt 0:01:17]} 36. Nd4 {[%emt 0:01:18]} Rd2 {[%emt 0:01:18]} 37. Nf3 {[%emt 0:01:55]} Rb2 {[%emt 0:00:20]} 38. Nd4 {[%emt 0:00:55]} Ne4 {[%emt 0:00:10]} 39. Rf3 {[%emt 0:00:40]} Ng5 {[%emt 0:00:15]} 40. Rb3 {[%emt 0:00:00]} Rxb3 {[%emt 0:00:00]} 41. Nxb3 {[%emt 0:00:29]} Nxh3 {[%emt 0:00:46]} 42. Kg2 {[%emt 0:00:15]} Ng5 {[%emt 0:02:07]} 43. Nd4 {[%emt 0:03:53]} g6 {[%emt 0:00:59]} 44. Ne2 {[%emt 0:01:39]} Kf7 {[%emt 0:00:34]} 45. Nf4 {[%emt 0:00:09]} Ne6 {[%emt 0:00:25]} 46. Nd3 {[%emt 0:01:02]} Ke7 {[%emt 0:00:44]} 47. g4 {[%emt 0:01:09]} Kd6 {[%emt 0:00:54]} 48. Kg3 {[%emt 0:01:15]} Kd5 {[%emt 0:01:03]} 49. Nb4+ {[%emt 0:02:34]} Kc5 {[%emt 0:00:40]} 50. Nc2 {[%emt 0:02:01]} Kc4 {[%emt 0:01:13]} 51. Ne3+ {[%emt 0:00:49]} Kd4 {[%emt 0:00:28]} 52. Nc2+ {[%emt 0:00:04]} Ke4 {[%emt 0:00:05]} 53. Nb4 {[%emt 0:00:34]} Nd4 {[%emt 0:00:46]} 54. Na6 {[%emt 0:01:50]} Ne2+ {[%emt 0:04:10]} 55. Kf2 {[%emt 0:02:34]} Nc3 {[%emt 0:00:04]} 56. Kg3 {[%emt 0:01:22]} Ke3 {[%emt 0:00:15]} 57. Nc7 {[%emt 0:00:57]} Ne4+ {[%emt 0:00:47]} 58. Kh4 {[%emt 0:02:36]} Kf3 {[%emt 0:00:40]} 59. Ne6 {[%emt 0:00:57]} g5+ {[%emt 0:07:24]} 60. Kh5 {[%emt 0:00:16]} Kg3 {[%emt 0:00:13]} 61. Nd4 {[%emt 0:02:28]} Kf4 {[%emt 0:00:28]} 62. Ne6+ {[%emt 0:01:03]} Ke5 {[%emt 0:01:31]} 63. Nf8 {[%emt 0:00:19]} Nf2 {[%emt 0:01:03]} 64. Nh7 {[%emt 0:01:01]} Nh3 {[%emt 0:01:49]} 65. Kg6 {[%emt 0:01:05]} Nf4+ {[%emt 0:00:24]} 66. Kh6 {[%emt 0:00:21]} Ne6 {[%emt 0:07:48]} 67. Kg6 {[%emt 0:01:28]} Nf4+ {[%emt 0:02:13]} 68. Kh6 {[%emt 0:01:19]} Nd5 {[%emt 0:03:43]} 69. Nxg5 {[%emt 0:00:29]} Ne3 {[%emt 0:00:26]} 70. Kh5 {[%emt 0:00:32]} 1/2-1/2

[Event "EYCC Open-U12 2019"]
[Site "Bratislava"]
[Date "2019.08.08"]
[Round "7.9"]
[White "Vagman, Roy"]
[Black "Lystsov, Leonid"]
[Result "1-0"]
[ECO "B24"]
[WhiteElo "1941"]
[BlackElo "2086"]
[Annotator "NA"]
[PlyCount "67"]
[EventDate "2019.08.02"]
[EventType "swiss"]
[EventCountry "SVK"]
[SourceTitle "playchess.com"]
[Source "ChessBase"]
[SourceQuality "1"]
[TimeControl "40/5400+30:1800+30"]

1. e4 {[%emt 0:00:00]} c5 {[%emt 0:00:00]} 2. Nc3 {[%emt 0:00:00]} Nc6 {[%emt 0:00:00]} 3. Bb5 {[%emt 0:00:26]} Nd4 {[%emt 0:00:04]} 4. Nf3 {[%emt 0:00:37]} Nxb5 {[%emt 0:05:04]} 5. Nxb5 {[%emt 0:00:32]} d5 {[%emt 0:20:29]} 6. exd5 {[%emt 0:02:07]} a6 {[%emt 0:00:30]} 7. Nc3 {[%emt 0:01:14]} Nf6 {[%emt 0:00:22]} 8. O-O {[%emt 0:06:34]} Nxd5 {[%emt 0:03:32]} 9. Ne4 {[%emt 0:01:53]} e6 {[%emt 0:08:39]} 10. d4 {[%emt 0:03:24]} cxd4 {[%emt 0:02:25]} 11. Qxd4 {[%emt 0:04:58]} Qb6 {[%emt 0:01:56]} 12. Qd3 {[%emt 0:02:33]} Be7 {[%emt 0:09:12]} 13. c4 {[%emt 0:02:13]} Nb4 {[%emt 0:08:57]} 14. Qc3 {[%emt 0:02:17]} Qa5 {[%emt 0:30:29]} 15. Qxg7 {[%emt 0:01:18]} Rf8 {[%emt 0:01:08]} 16. Bg5 {[%emt 0:02:42]} Qf5 {[%emt 0:01:44]} 17. Bxe7 {[%emt 0:06:34]} Kxe7 {[%emt 0:00:10]} 18. Ng3 {[%emt 0:00:37]} Qf6 {[%emt 0:03:21]} 19. Qxh7 {[%emt 0:01:52]} Bd7 {[%emt 0:00:45]} 20. a3 {[%emt 0:01:53]} Nc6 {[%emt 0:00:17]} 21. Rad1 {[%emt 0:01:00]} Rad8 {[%emt 0:00:50]} 22. Qd3 {[%emt 0:02:08]} Qxb2 {[%emt 0:00:34]} 23. Rb1 {[%emt 0:02:00]} Qa2 {[%emt 0:00:30]} 24. Qc3 {[%emt 0:02:16]} b5 {[%emt 0:00:26]} 25. cxb5 {[%emt 0:00:47]} axb5 {[%emt 0:00:05]} 26. Qc5+ {[%emt 0:00:27]} Ke8 {[%emt 0:00:27]} 27. Ne4 {[%emt 0:00:10]} f6 {[%emt 0:01:00]} 28. Nd6+ {[%emt 0:00:41]} Ke7 {[%emt 0:00:05]} 29. Nxb5+ {[%emt 0:00:20]} Kf7 {[%emt 0:00:33]} 30. Nc3 {[%emt 0:00:13]} Qc2 {[%emt 0:00:40]} 31. Rb7 {[%emt 0:00:53]} Nb8 {[%emt 0:00:37]} 32. Nd4 {[%emt 0:02:32]} Qg6 {[%emt 0:00:36]} 33. Nxe6 {[%emt 0:01:06]} Rc8 {[%emt 0:00:32]} 34. Qd5 {[%emt 0:00:16]} 1-0

[Event "EYCC Open-U12 2019"]
[Site "Bratislava"]
[Date "2019.08.08"]
[Round "7.10"]
[White "Palczert, Matyas"]
[Black "von Mettenheim, Johannes"]
[Result "0-1"]
[ECO "B10"]
[WhiteElo "2065"]
[BlackElo "1809"]
[Annotator "NA"]
[PlyCount "76"]
[EventDate "2019.08.02"]
[EventType "swiss"]
[EventCountry "SVK"]
[SourceTitle "playchess.com"]
[Source "ChessBase"]
[SourceQuality "1"]
[TimeControl "40/5400+30:1800+30"]

1. e4 {[%emt 0:00:00]} c6 {[%emt 0:00:00]} 2. Nf3 {[%emt 0:00:00]} d5 {[%emt 0:00:00]} 3. exd5 {[%emt 0:00:00]} cxd5 {[%emt 0:00:00]} 4. Ne5 {[%emt 0:00:02]} Nf6 {[%emt 0:00:00]} 5. d4 {[%emt 0:00:17]} g6 {[%emt 0:00:00]} 6. Bd3 {[%emt 0:02:01]} Bg7 {[%emt 0:00:00]} 7. O-O {[%emt 0:00:32]} O-O {[%emt 0:00:05]} 8. c3 {[%emt 0:00:51]} Nc6 {[%emt 0:00:25]} 9. Qe2 {[%emt 0:03:57]} Nxe5 {[%emt 0:02:12]} 10. dxe5 {[%emt 0:00:19]} Nd7 {[%emt 0:00:23]} 11. f4 {[%emt 0:00:53]} Nc5 {[%emt 0:00:29]} 12. Bc2 {[%emt 0:00:59]} b6 {[%emt 0:04:05]} 13. Rd1 {[%emt 0:04:17]} Ba6 {[%emt 0:01:45]} 14. Qf3 {[%emt 0:02:14]} Bb7 {[%emt 0:02:39]} 15. b4 {[%emt 0:05:36]} Ne6 {[%emt 0:03:15]} 16. Bb3 {[%emt 0:09:06]} Nc7 {[%emt 0:03:59]} 17. Be3 {[%emt 0:02:31]} Qc8 {[%emt 0:05:42]} 18. Bd4 {[%emt 0:03:53]} f6 {[%emt 0:03:38]} 19. exf6 {[%emt 0:08:58]} Bxf6 {[%emt 0:00:17]} 20. Bxf6 {[%emt 0:04:22]} Rxf6 {[%emt 0:00:15]} 21. Qe3 {[%emt 0:03:28]} Kf8 {[%emt 0:02:41]} 22. Na3 {[%emt 0:05:07]} Qg4 {[%emt 0:01:10]} 23. g3 {[%emt 0:06:50]} Ne6 {[%emt 0:13:06]} 24. f5 {[%emt 0:06:36]} gxf5 {[%emt 0:09:06]} 25. Bxd5 {[%emt 0:00:19]} f4 {[%emt 0:01:46]} 26. Bxe6 {[%emt 0:02:53]} Qxd1+ {[%emt 0:00:21]} 27. Rxd1 {[%emt 0:00:11]} fxe3 {[%emt 0:00:06]} 28. Bg4 {[%emt 0:01:04]} Bf3 {[%emt 0:03:25]} 29. Bxf3 {[%emt 0:00:06]} Rxf3 {[%emt 0:00:02]} 30. Rf1 {[%emt 0:01:40]} Rxf1+ {[%emt 0:00:06]} 31. Kxf1 {[%emt 0:00:03]} Rd8 {[%emt 0:00:46]} 32. Nc4 {[%emt 0:00:48]} Rd3 {[%emt 0:00:35]} 33. Ke2 {[%emt 0:00:16]} Rxc3 {[%emt 0:00:01]} 34. Nxe3 {[%emt 0:00:07]} Ra3 {[%emt 0:00:04]} 35. Nd5 {[%emt 0:00:49]} Rxa2+ {[%emt 0:00:05]} 36. Kd3 {[%emt 0:00:04]} Rxh2 {[%emt 0:02:51]} 37. Kc4 {[%emt 0:00:13]} Rg2 {[%emt 0:01:08]} 38. Kb5 {[%emt 0:00:15]} a5 {[%emt 0:00:07]} 0-1

[Event "EYCC Open-U12 2019"]
[Site "Bratislava"]
[Date "2019.08.08"]
[Round "7.11"]
[White "Habans Aguerrea, Javier"]
[Black "Trost, Edvin"]
[Result "1/2-1/2"]
[ECO "A20"]
[WhiteElo "2083"]
[BlackElo "2069"]
[Annotator "NA"]
[PlyCount "186"]
[EventDate "2019.08.02"]
[EventType "swiss"]
[EventCountry "SVK"]
[SourceTitle "playchess.com"]
[Source "ChessBase"]
[SourceQuality "1"]
[TimeControl "40/5400+30:1800+30"]

1. c4 {[%emt 0:00:00]} e5 {[%emt 0:00:00]} 2. g3 {[%emt 0:00:00]} Nf6 {[%emt 0:00:00]} 3. Bg2 {[%emt 0:00:00]} d5 {[%emt 0:00:00]} 4. cxd5 {[%emt 0:00:00]} Nxd5 {[%emt 0:00:00]} 5. Nf3 {[%emt 0:00:07]} Nc6 {[%emt 0:00:00]} 6. O-O {[%emt 0:00:11]} Nb6 {[%emt 0:00:00]} 7. b3 {[%emt 0:00:08]} Bd6 {[%emt 0:00:05]} 8. Bb2 {[%emt 0:05:10]} O-O {[%emt 0:00:53]} 9. d4 {[%emt 0:00:08]} e4 {[%emt 0:03:36]} 10. Ne5 {[%emt 0:00:21]} f5 {[%emt 0:12:04]} 11. Nxc6 {[%emt 0:00:59]} bxc6 {[%emt 0:00:01]} 12. Qc2 {[%emt 0:01:33]} Bd7 {[%emt 0:03:15]} 13. Nd2 {[%emt 0:03:26]} Qe8 {[%emt 0:12:00]} 14. e3 {[%emt 0:03:37]} Be6 {[%emt 0:01:48]} 15. f3 {[%emt 0:10:16]} exf3 {[%emt 0:07:06]} 16. Bxf3 {[%emt 0:00:19]} Bd5 {[%emt 0:00:01]} 17. Rae1 {[%emt 0:09:51]} Qg6 {[%emt 0:01:08]} 18. e4 {[%emt 0:14:11]} fxe4 {[%emt 0:12:09]} 19. Bxe4 {[%emt 0:00:12]} Rxf1+ {[%emt 0:00:22]} 20. Rxf1 {[%emt 0:00:11]} Qh5 {[%emt 0:12:02]} 21. Qd1 {[%emt 0:08:09]} Qg5 {[%emt 0:01:51]} 22. Qe2 {[%emt 0:02:27]} Bxe4 {[%emt 0:09:51]} 23. Nxe4 {[%emt 0:00:09]} Qg6 {[%emt 0:03:32]} 24. Nc3 {[%emt 0:06:19]} Rf8 {[%emt 0:01:46]} 25. Rxf8+ {[%emt 0:00:10]} Bxf8 {[%emt 0:00:02]} 26. Qe4 {[%emt 0:03:15]} Qd6 {[%emt 0:01:10]} 27. Bc1 {[%emt 0:06:26]} Nd5 {[%emt 0:03:16]} 28. Nxd5 {[%emt 0:01:10]} cxd5 {[%emt 0:00:19]} 29. Qf3 {[%emt 0:02:47]} Qe6 {[%emt 0:06:36]} 30. Bf4 {[%emt 0:00:17]} c5 {[%emt 0:01:39]} 31. Be5 {[%emt 0:03:00]} a6 {[%emt 0:00:44]} 32. Qc3 {[%emt 0:01:18]} c4 {[%emt 0:02:54]} 33. Kg2 {[%emt 0:01:59]} Qc6 {[%emt 0:00:32]} 34. Kf2 {[%emt 0:01:19]} Qb5 {[%emt 0:01:27]} 35. bxc4 {[%emt 0:00:06]} dxc4 {[%emt 0:00:10]} 36. Qf3 {[%emt 0:04:07]} Qa5 {[%emt 0:02:59]} 37. a4 {[%emt 0:02:13]} Qxa4 {[%emt 0:01:14]} 38. Qd5+ {[%emt 0:00:07]} Kh8 {[%emt 0:00:02]} 39. Qf7 {[%emt 0:00:01]} Qb4 {[%emt 0:00:25]} 40. d5 {[%emt 0:00:00]} Qc5+ {[%emt 0:00:00]} 41. Kg2 {[%emt 0:03:42]} h6 {[%emt 0:06:39]} 42. Qe6 {[%emt 0:01:16]} Qe7 {[%emt 0:03:27]} 43. Qxh6+ {[%emt 0:01:53]} Kg8 {[%emt 0:00:00]} 44. Qf4 {[%emt 0:02:22]} Qc5 {[%emt 0:00:51]} 45. Qe4 {[%emt 0:02:39]} c3 {[%emt 0:01:11]} 46. Bxc3 {[%emt 0:00:46]} Qxc3 {[%emt 0:01:41]} 47. Qe6+ {[%emt 0:00:01]} Kh8 {[%emt 0:01:28]} 48. Qh3+ {[%emt 0:00:07]} Kg8 {[%emt 0:00:01]} 49. Qe6+ {[%emt 0:00:01]} Kh7 {[%emt 0:00:01]} 50. Qf5+ {[%emt 0:00:01]} Kh6 {[%emt 0:01:11]} 51. Qxf8 {[%emt 0:00:47]} Qd2+ {[%emt 0:00:05]} 52. Kg1 {[%emt 0:00:59]} Qxd5 {[%emt 0:00:39]} 53. Qh8+ {[%emt 0:00:27]} Kg6 {[%emt 0:00:19]} 54. Qe8+ {[%emt 0:00:05]} Kh7 {[%emt 0:00:25]} 55. Qa4 {[%emt 0:00:43]} a5 {[%emt 0:00:33]} 56. h4 {[%emt 0:00:21]} Qe5 {[%emt 0:00:55]} 57. Kh2 {[%emt 0:00:24]} Qe2+ {[%emt 0:01:04]} 58. Kh3 {[%emt 0:00:12]} Qe5 {[%emt 0:00:47]} 59. Kh2 {[%emt 0:00:55]} Kg8 {[%emt 0:00:18]} 60. Qd7 {[%emt 0:00:46]} Kf8 {[%emt 0:00:18]} 61. Qd8+ {[%emt 0:00:22]} Kf7 {[%emt 0:00:10]} 62. Qd7+ {[%emt 0:00:26]} Kf6 {[%emt 0:00:06]} 63. Qd8+ {[%emt 0:00:44]} Kf5 {[%emt 0:00:39]} 64. Qd3+ {[%emt 0:00:45]} Ke6 {[%emt 0:00:17]} 65. Qa6+ {[%emt 0:00:05]} Kf5 {[%emt 0:00:59]} 66. Qd3+ {[%emt 0:00:09]} Kg4 {[%emt 0:00:31]} 67. Qd1+ {[%emt 0:00:39]} Kf5 {[%emt 0:00:05]} 68. Qd3+ {[%emt 0:00:05]} Kf6 {[%emt 0:00:07]} 69. Qf3+ {[%emt 0:00:30]} Kg6 {[%emt 0:00:02]} 70. Qd3+ {[%emt 0:00:52]} Qf5 {[%emt 0:00:17]} 71. Qd1 {[%emt 0:01:56]} Kh7 {[%emt 0:00:24]} 72. Qa4 {[%emt 0:01:03]} g5 {[%emt 0:00:50]} 73. hxg5 {[%emt 0:00:58]} Qxg5 {[%emt 0:00:27]} 74. Kg2 {[%emt 0:00:36]} Qd5+ {[%emt 0:00:21]} 75. Kf2 {[%emt 0:00:08]} Kg7 {[%emt 0:00:13]} 76. Ke2 {[%emt 0:00:24]} Kf7 {[%emt 0:00:20]} 77. Qf4+ {[%emt 0:00:10]} Ke6 {[%emt 0:00:21]} 78. Qe3+ {[%emt 0:00:11]} Kf6 {[%emt 0:00:32]} 79. Qd3 {[%emt 0:00:31]} Qa2+ {[%emt 0:00:22]} 80. Kd1 {[%emt 0:00:20]} a4 {[%emt 0:00:19]} 81. Qd6+ {[%emt 0:00:27]} Kf5 {[%emt 0:00:11]} 82. Qf4+ {[%emt 0:00:18]} Ke6 {[%emt 0:00:19]} 83. Qe3+ {[%emt 0:00:12]} Kf6 {[%emt 0:00:45]} 84. Qf4+ {[%emt 0:00:04]} Ke6 {[%emt 0:00:04]} 85. Qe3+ {[%emt 0:00:05]} Kd5 {[%emt 0:00:25]} 86. Qd2+ {[%emt 0:00:17]} Qxd2+ {[%emt 0:00:09]} 87. Kxd2 {[%emt 0:00:02]} a3 {[%emt 0:00:01]} 88. Kc2 {[%emt 0:00:01]} a2 {[%emt 0:00:05]} 89. Kb2 {[%emt 0:00:10]} a1=N {[%emt 0:00:05]} 90. Kxa1 {[%emt 0:00:26]} Ke4 {[%emt 0:00:02]} 91. g4 {[%emt 0:00:10]} Kf4 {[%emt 0:00:03]} 92. g5 {[%emt 0:00:05]} Kf5 {[%emt 0:00:04]} 93. g6 {[%emt 0:00:11]} Kxg6 {[%emt 0:00:04]} 1/2-1/2